bitfinex-derivatives/quotes_SOLF0:USTF0_20260215
["timestamp","ask_amount","ask_price","bid_price","bid_amount"]
[1771127461507,23.55564793,88.269,88.196,18.01893877]
[1771127461710,23.55564793,88.269,88.178,18.01893877]
[1771127461907,6.15279904,88.27,88.178,18.01893877]
[1771127461908,23.55564793,88.242,88.178,18.01893877]
[1771127462105,23.55564793,88.26,88.19,18.01893877]
[1771127462707,23.55564793,88.256,88.194,10.2082]
[1771127463108,23.55564793,88.256,88.194,28.23238208]
[1771127463314,23.55564793,88.256,88.202,10.2073]
[1771127463510,23.55564793,88.256,88.203,18.37554154]
[1771127464415,23.55564793,88.256,88.204,10.2071]
[1771127464805,23.55564793,88.256,88.214,10.206]
[1771127465008,23.55564793,88.277,88.214,10.206]
[1771127465814,23.55564793,88.277,88.225,10.2047]
[1771127466910,23.55564793,88.277,88.219,18.25629752]
[1771127467714,23.55564793,88.277,88.221,10.2051]
[1771127468617,23.55564793,88.275,88.2,18.20779895]
[1771127469007,23.55564793,88.292,88.211,18.20779895]
[1771127469415,23.55564793,88.289,88.222,10.205]
[1771127470315,23.55564793,88.287,88.222,10.205]
[1771127470518,23.55564793,88.287,88.231,10.2039]
[1771127472218,23.55564793,88.287,88.22,10.2052]
[1771127472522,6.15279904,88.31,88.211,18.20779895]
[1771127472523,23.55564793,88.284,88.211,18.20779895]
[1771127473419,23.4390464,88.279,88.217,10.2056]
[1771127474226,23.4390464,88.279,88.218,18.57724164]
[1771127474418,23.4390464,88.279,88.221,28.78439492]
[1771127474619,23.4390464,88.279,88.222,18.57929492]
[1771127475416,23.4390464,88.279,88.227,10.2044]
[1771127479521,23.4390464,88.276,88.222,18.57929492]
[1771127480623,23.4390464,88.272,88.213,10.206]
[1771127481527,6.16506661,88.29,88.213,10.206]
[1771127481528,23.4390464,88.27,88.213,10.206]
[1771127481826,23.4390464,88.27,88.206,18.44552436]
[1771127482018,23.4390464,88.268,88.206,18.44552436]
[1771127482525,23.4390464,88.255,88.194,10.2082]
[1771127482723,23.4390464,88.255,88.194,18.45652674]
[1771127482924,23.4390464,88.286,88.207,18.45652674]
[1771127483326,23.4390464,88.273,88.212,10.2062]
[1771127483725,23.4390464,88.273,88.207,18.45652674]
[1771127483726,23.4390464,88.269,88.208,10.2066]
[1771127484028,23.4390464,88.288,88.211,17.86359701]
[1771127484227,23.4390464,88.288,88.215,17.8659983]
[1771127484425,23.4390464,88.288,88.218,17.8655023]
[1771127485123,23.4390464,88.288,88.222,38.88959152]
[1771127485323,23.4390464,88.288,88.224,17.88520342]
[1771127485528,23.4390464,88.288,88.231,21.02408922]
[1771127486326,23.4390464,88.288,88.232,21.02408922]
[1771127486826,2.30115215,88.28,88.232,21.02408922]
[1771127487218,2.30115215,88.28,88.23,17.88520342]
[1771127487423,25.74019855,88.28,88.23,17.88520342]
[1771127487626,2.30115215,88.27,88.23,17.88520342]
[1771127487821,23.4390464,88.27,88.221,17.97602491]
[1771127488023,23.4390464,88.27,88.226,21.02408922]
[1771127488226,23.4390464,88.27,88.224,39.00214799]
[1771127488423,23.4390464,88.286,88.23,2.30115215]
[1771127488622,23.4390464,88.286,88.232,21.02408922]
[1771127488818,23.4390464,88.279,88.231,17.97764296]
[1771127489025,23.4390464,88.279,88.232,28.18154296]
[1771127489219,23.4390464,88.279,88.183,34.0]
[1771127489220,2.30115215,88.3,88.246,21.02408922]
[1771127489424,2.30115215,88.3,88.241,17.97957205]
[1771127489425,2.30115215,88.3,88.247,21.02408922]
[1771127489640,25.74019855,88.3,88.247,21.02408922]
[1771127490127,25.74019855,88.3,88.246,21.02408922]
[1771127491126,25.74019855,88.3,88.245,21.02408922]
[1771127491330,23.4390464,88.297,88.245,21.02408922]
[1771127491633,2.30115215,88.29,88.244,21.02408922]
[1771127492028,2.30115215,88.29,88.241,17.97957205]
[1771127492423,25.74019855,88.29,88.241,17.97957205]
[1771127492830,23.4390464,88.29,88.245,10.2023]
[1771127493028,25.74019855,88.29,88.245,10.2023]
[1771127495027,25.74019855,88.29,88.241,17.97957205]
[1771127495233,25.74019855,88.28,88.234,21.02408922]
[1771127495436,25.74019855,88.28,88.23,23.32524137]
[1771127495831,25.74019855,88.28,88.232,21.02408922]
[1771127496031,25.74019855,88.28,88.234,21.02408922]
[1771127496328,25.74019855,88.28,88.235,21.02408922]
[1771127498036,23.4390464,88.278,88.225,10.2047]
[1771127498434,23.4390464,88.278,88.224,17.75199244]
[1771127498435,23.4390464,88.278,88.227,10.2044]
[1771127499632,23.4390464,88.269,88.218,21.02408922]
[1771127499837,2.30115215,88.28,88.222,17.73749082]
[1771127500031,2.30115215,88.28,88.22,2.30115215]
[1771127500032,2.30115215,88.28,88.23,20.03864297]
[1771127500337,23.4390464,88.283,88.23,20.03864297]
[1771127500338,23.4390464,88.283,88.233,38.76351556]
[1771127501136,23.21452174,88.332,88.245,15.43807981]
[1771127501341,23.21452174,88.332,88.267,15.43807981]
[1771127501636,23.21452174,88.332,88.28,18.06132779]
[1771127502341,23.21452174,88.329,88.27,12.50065215]
[1771127502937,23.21452174,88.329,88.27,10.1995]
[1771127504636,23.03614076,88.325,88.248,15.77940998]
[1771127505638,23.03614076,88.325,88.263,15.34725278]
[1771127506134,23.03614076,88.322,88.258,10.2008]
[1771127506543,23.03614076,88.322,88.259,15.34979287]
[1771127507740,23.03614076,88.322,88.267,10.1998]
[1771127508348,23.03614076,88.322,88.259,15.34979287]
[1771127509448,23.03614076,88.322,88.261,15.17055036]
[1771127510148,23.03614076,88.322,88.268,15.17374616]
[1771127514250,23.03614076,88.321,88.268,15.17374616]
[1771127515060,90.42,88.342,88.225,138.83239019]
[1771127515061,23.03614076,88.316,88.249,15.19239242]
[1771127515750,23.03614076,88.316,88.26,15.3003919]
[1771127516856,23.03614076,88.316,88.264,10.2001]
[1771127517056,23.03614076,88.316,88.264,15.30255889]
[1771127517960,23.03614076,88.316,88.275,10.1989]
[1771127520762,23.03614076,88.335,88.28,10.1983]
[1771127521058,23.03614076,88.335,88.276,15.5431454]
[1771127521059,23.03614076,88.335,88.281,15.5431454]
[1771127521754,23.03614076,88.335,88.285,10.1977]
[1771127522157,23.03614076,88.335,88.238,28.05239019]
[1771127522158,23.03614076,88.349,88.286,15.55276736]
[1771127522356,23.03614076,88.349,88.295,15.55453832]
[1771127522953,23.03614076,88.349,88.3,2.29744195]
[1771127523158,23.03614076,88.339,88.295,15.55453832]
[1771127524156,23.03614076,88.329,88.275,10.1988]
[1771127524358,23.03614076,88.319,88.275,10.1988]
[1771127525064,2.29744195,88.34,88.29,2.29744195]
[1771127525267,23.03614076,88.342,88.29,17.60399913]
[1771127525465,23.03614076,88.342,88.3,2.29744195]
[1771127526563,23.03614076,88.342,88.29,17.60399913]
[1771127527268,23.03614076,88.339,88.281,10.1981]
[1771127527466,23.03614076,88.329,88.276,15.36930323]
[1771127527861,23.03614076,88.329,88.282,10.1981]
[1771127528767,23.03614076,88.327,88.273,10.1991]
[1771127529966,23.03614076,88.327,88.28,10.1983]
[1771127530163,23.03614076,88.327,88.274,15.3960331]
[1771127530567,10.1932,88.325,88.275,10.1989]
[1771127531063,10.1932,88.325,88.274,15.3960331]
[1771127531064,23.03614076,88.316,88.266,10.2]
[1771127531266,23.03614076,88.316,88.27,17.69774545]
[1771127531467,23.03614076,88.331,88.29,2.29744195]
[1771127531661,10.191,88.344,88.29,2.29744195]
[1771127531968,23.03614076,88.343,88.3,2.29744195]
[1771127532164,23.03614076,88.343,88.29,2.29744195]
[1771127532466,23.03614076,88.343,88.29,17.56590958]
[1771127532767,23.03614076,88.343,88.294,10.1967]
[1771127532962,23.042711,88.359,88.301,15.23818438]
[1771127533167,23.042711,88.359,88.31,17.53562633]
[1771127534362,23.042711,88.366,88.301,15.25812927]
[1771127534570,23.042711,88.366,88.271,34.0]
[1771127534571,2.29744195,88.36,88.311,15.25812927]
[1771127534765,23.042711,88.366,88.311,15.25812927]
[1771127535167,23.042711,88.366,88.326,10.193]
[1771127535764,2.29744195,88.36,88.314,10.1943]
[1771127536367,25.34015295,88.36,88.314,10.1943]
[1771127536872,23.042711,88.339,88.282,15.21523442]
[1771127537870,23.042711,88.339,88.293,10.1968]
[1771127539070,8.23108346,88.391,88.301,24.78174832]
[1771127539277,2.2978742,88.36,88.301,24.78174832]
[1771127540175,2.2978742,88.35,88.301,24.78174832]
[1771127540678,2.2978742,88.36,88.301,24.78174832]
[1771127540975,6.15366218,88.37,88.301,24.78174832]
[1771127541179,23.042711,88.356,88.301,24.78174832]
[1771127542186,23.042711,88.356,88.305,24.78174832]
[1771127543477,23.042711,88.356,88.297,10.1963]
[1771127543478,23.042711,88.354,88.297,10.1963]
[1771127543879,23.042711,88.354,88.27,24.78174832]
[1771127544075,23.042711,88.337,88.27,24.78174832]
[1771127544383,23.042711,88.337,88.262,10.2004]
[1771127545472,23.042711,88.324,88.262,10.2004]
[1771127546182,23.042711,88.319,88.252,24.78174832]
[1771127546586,23.042711,88.319,88.255,24.78174832]
[1771127547175,23.042711,88.319,88.267,24.78174832]
[1771127547376,23.042711,88.339,88.267,24.78174832]
[1771127548782,23.042711,88.338,88.269,24.78174832]
[1771127550783,23.042711,88.321,88.269,24.78174832]
[1771127557886,10.192,88.335,88.271,24.78174832]
[1771127558493,23.042711,88.337,88.285,24.78174832]
[1771127558788,10.1919,88.336,88.285,24.78174832]
[1771127558997,23.042711,88.335,88.285,24.78174832]
[1771127559496,10.1909,88.345,88.285,24.78174832]
[1771127560094,23.042711,88.344,88.285,24.78174832]
[1771127560796,23.042711,88.344,88.287,23.97933431]
[1771127560998,2.29804871,88.34,88.287,23.97933431]
[1771127561196,27.1711093,88.34,88.287,23.97933431]
[1771127561695,27.1711093,88.34,88.288,10.1974]
[1771127562288,27.1711093,88.34,88.291,10.197]
[1771127562493,27.1711093,88.34,88.292,23.97933431]
[1771127562793,27.1711093,88.34,88.252,28.05239019]
[1771127562794,2.29804871,88.37,88.311,23.97933431]
[1771127562993,27.16071719,88.36,88.311,23.97933431]
[1771127563692,2.29804871,88.34,88.296,24.07400026]
[1771127563886,24.86266848,88.35,88.296,24.07400026]
[1771127563887,27.16071719,88.35,88.296,24.07400026]
[1771127564897,27.16071719,88.35,88.298,10.1962]
[1771127565100,27.16071719,88.35,88.3,2.29804871]
[1771127565600,24.86266848,88.35,88.303,24.07400026]
[1771127566498,10.1871,88.378,88.321,24.07400026]
[1771127566903,2.29804871,88.37,88.321,24.07400026]
[1771127567703,27.16071719,88.37,88.321,24.07400026]
[1771127568205,2.29804871,88.36,88.321,24.07400026]
[1771127568396,24.86266848,88.359,88.305,24.07400026]
[1771127568797,27.16071719,88.34,88.291,24.07400026]
[1771127569199,2.29804871,88.34,88.291,24.07400026]
[1771127569508,90.36,88.374,88.273,21.0336713]
[1771127569509,2.29804871,88.37,88.311,24.07400026]
[1771127569808,2.29804871,88.36,88.311,24.07400026]
[1771127570203,24.86266848,88.369,88.311,24.07400026]
[1771127570804,24.86266848,88.368,88.311,24.07400026]
[1771127571409,2.29804871,88.36,88.311,24.07400026]
[1771127571796,24.86266848,88.349,88.3,2.29804871]
[1771127572401,24.86266848,88.349,88.301,24.07400026]
[1771127575706,2.29804871,88.36,88.311,24.07400026]
[1771127575905,24.86266848,88.364,88.311,24.07400026]
[1771127576801,24.86266848,88.364,88.314,24.07400026]
[1771127577602,24.86266848,88.359,88.314,24.07400026]
[1771127578105,2.29804871,88.35,88.3,2.29804871]
[1771127578310,27.16071719,88.35,88.3,2.29804871]
[1771127578715,24.86266848,88.339,88.29,2.29804871]
[1771127578910,24.86266848,88.339,88.286,24.07400026]
[1771127579301,24.86266848,88.339,88.287,10.1974]
[1771127580411,24.86266848,88.339,88.272,21.0336713]
[1771127580412,10.1908,88.346,88.293,24.07400026]
[1771127580908,10.1908,88.346,88.301,24.07400026]
[1771127581115,24.86266848,88.345,88.301,24.07400026]
[1771127582314,24.86266848,88.345,88.301,34.26980026]
[1771127582510,10.1884,88.367,88.311,24.07400026]
[1771127582710,24.86266848,88.375,88.321,24.07400026]
[1771127582909,24.86266848,88.375,88.33,2.29804871]
[1771127583509,24.86266848,88.375,88.322,24.07400026]
[1771127583713,24.86266848,88.375,88.34,2.29804871]
[1771127584014,24.86266848,88.375,88.331,24.07400026]
[1771127591621,24.86266848,88.375,88.332,10.1923]
[1771127591822,10.1861,88.387,88.333,24.07400026]
[1771127592017,10.1861,88.387,88.334,10.1921]
[1771127592220,24.86266848,88.389,88.34,2.29804871]
[1771127592614,24.86266848,88.369,88.311,24.07400026]
[1771127592815,24.86266848,88.369,88.32,2.29804871]
[1771127593424,24.86266848,88.369,88.324,24.20085988]
[1771127593625,24.86266848,88.369,88.31,26.49890859]
[1771127594525,2.29804871,88.36,88.311,10.1948]
[1771127594729,24.17604033,88.359,88.311,10.1948]
[1771127595931,24.17604033,88.349,88.3,2.29804871]
[1771127596142,24.17604033,88.379,88.321,24.20085988]
[1771127597530,24.17604033,88.379,88.33,2.29804871]
[1771127598732,24.17604033,88.379,88.321,34.39445988]
[1771127600133,24.17604033,88.369,88.321,10.1936]
[1771127600330,24.17604033,88.377,88.33,2.296098]
[1771127600835,24.17604033,88.377,88.33,26.49695788]
[1771127601833,24.17604033,88.377,88.33,24.20085988]
[1771127602339,16.62184858,88.392,88.34,26.49695788]
[1771127602538,16.62184858,88.392,88.287,158.6277]
[1771127602539,16.62184858,88.392,88.351,24.20085988]
[1771127603031,16.62184858,88.392,88.354,24.20085988]
[1771127604733,16.62184858,88.392,88.34,24.20085988]
[1771127604734,2.296098,88.39,88.34,24.20085988]
[1771127604935,24.17604033,88.389,88.34,24.20085988]
[1771127605740,24.17604033,88.389,88.343,10.191]
[1771127606142,24.17604033,88.389,88.34,24.20085988]
[1771127607238,16.62184858,88.392,88.341,24.20085988]
[1771127608138,16.62184858,88.392,88.352,24.20085988]
[1771127609944,16.62184858,88.392,88.353,10.1899]
[1771127611449,16.62184858,88.392,88.355,34.39045988]
[1771127612747,16.62184858,88.392,88.36,24.20085988]
[1771127613042,40.79788891,88.392,88.341,24.20085988]
[1771127613349,26.47213833,88.39,88.341,24.20085988]
[1771127613540,2.296098,88.38,88.341,24.20085988]
[1771127613737,24.17604033,88.379,88.326,24.20085988]
[1771127614546,24.17604033,88.379,88.331,24.20085988]
[1771127614857,2.296098,88.39,88.341,24.20085988]
[1771127615246,16.62184858,88.392,88.341,24.20085988]
[1771127615750,16.62184858,88.392,88.344,24.20085988]
[1771127616549,16.62184858,88.392,88.34,2.296098]
[1771127616550,16.62184858,88.392,88.351,24.20085988]
[1771127617842,16.62184858,88.392,88.352,24.20085988]
[1771127618344,24.17604033,88.391,88.342,10.1911]
[1771127619146,24.17604033,88.391,88.342,34.39195988]
[1771127619549,24.17604033,88.391,88.351,10.1901]
[1771127620250,24.17604033,88.389,88.342,24.20085988]
[1771127620649,16.62184858,88.392,88.342,24.20085988]
[1771127620949,16.62184858,88.392,88.355,10.1897]
[1771127622141,24.90356231,88.389,88.343,10.191]
[1771127622846,24.90356231,88.389,88.351,10.1901]
[1771127623945,24.90356231,88.389,88.342,10.1911]
[1771127625450,25.11228344,88.379,88.33,10.1925]
[1771127625651,25.11228344,88.369,88.316,25.1413567]
[1771127626752,25.11228344,88.369,88.321,10.1935]
[1771127629352,16.62184858,88.392,88.305,21.0336713]
[1771127629353,25.11228344,88.349,88.305,21.0336713]
[1771127629551,25.11228344,88.349,88.302,25.1413567]
[1771127629751,25.11228344,88.339,88.294,21.0336713]
[1771127629949,25.11228344,88.339,88.29,21.0336713]
[1771127630348,25.11228344,88.339,88.288,21.0336713]
[1771127630753,25.11228344,88.339,88.288,31.2309713]
[1771127631156,25.11228344,88.339,88.288,10.1973]
[1771127631453,25.11228344,88.355,88.3,25.1413567]
[1771127631654,25.11228344,88.349,88.3,25.1413567]
[1771127632359,10.1887,88.364,88.311,25.1413567]
[1771127632360,25.11228344,88.364,88.311,25.1413567]
[1771127632659,25.11228344,88.364,88.32,2.296098]
[1771127633053,25.11228344,88.364,88.265,109.9]
[1771127633054,25.11228344,88.359,88.3,33.5257693]
[1771127633258,25.11228344,88.349,88.3,10.196]
[1771127637662,25.11228344,88.348,88.295,25.1413567]
[1771127640055,35.30318344,88.345,88.295,25.1413567]
[1771127640261,25.11228344,88.344,88.295,25.1413567]
[1771127640662,25.11228344,88.344,88.297,25.1413567]
[1771127640866,10.1899,88.354,88.301,25.1413567]
[1771127641062,10.1899,88.354,88.31,2.296098]
[1771127642062,25.11228344,88.358,88.31,27.4374547]
[1771127644368,25.11228344,88.372,88.321,25.1413567]
[1771127644567,14.07040225,88.439,88.279,20.397]
[1771127644568,25.11228344,88.389,88.341,25.1413567]
[1771127644867,25.11228344,88.389,88.342,10.1911]
[1771127645068,25.11228344,88.389,88.342,35.3324567]
[1771127646169,25.11228344,88.389,88.35,10.1902]
[1771127646469,25.11228344,88.403,88.36,27.4374547]
[1771127646972,4.858e-05,88.392,88.37,27.4374547]
[1771127647372,4.858e-05,88.392,88.344,21.0336713]
[1771127647373,10.54668183,88.483,88.381,25.1413567]
[1771127647671,2.296098,88.44,88.381,25.1413567]
[1771127647863,90.34,88.482,88.381,25.1413567]
[1771127647864,2.296098,88.43,88.381,25.1413567]
[1771127648266,2.296098,88.43,88.388,10.1858]
[1771127648472,2.296098,88.44,88.39,2.296098]
[1771127649769,27.40838144,88.44,88.39,2.296098]
[1771127650270,10.1801,88.439,88.381,25.1413567]
[1771127650470,2.296098,88.43,88.381,25.1413567]
[1771127650674,25.11228344,88.438,88.381,25.1413567]
[1771127653179,25.11228344,88.438,88.366,24.82477997]
[1771127653472,25.11228344,88.438,88.324,28.05239019]
[1771127653473,24.4882951,88.435,88.341,24.82477997]
[1771127654673,24.4882951,88.419,88.341,24.82477997]
[1771127655586,24.4882951,88.439,88.373,24.82477997]
[1771127656270,24.4882951,88.439,88.378,24.82477997]
[1771127656774,24.4882951,88.437,88.378,24.82477997]
[1771127657778,24.4882951,88.434,88.378,24.82477997]
[1771127661787,24.4882951,88.432,88.378,24.82477997]
[1771127663378,24.4882951,88.43,88.378,24.82477997]
[1771127664481,24.4882951,88.429,88.364,24.82477997]
[1771127664882,24.4882951,88.429,88.341,24.82477997]
[1771127665780,24.4882951,88.412,88.353,24.82477997]
[1771127667781,24.4882951,88.41,88.353,24.82477997]
[1771127668785,24.4882951,88.408,88.353,24.82477997]
[1771127669880,34.6721951,88.406,88.353,24.82477997]
[1771127670586,10.1842,88.403,88.353,24.82477997]
[1771127671388,34.6724951,88.403,88.353,24.82477997]
[1771127671685,24.4882951,88.4,88.353,24.82477997]
[1771127671981,24.4882951,88.4,88.339,24.82477997]
[1771127672183,24.4882951,88.386,88.339,24.82477997]
[1771127672383,24.4882951,88.429,88.341,24.82477997]
[1771127672985,24.4882951,88.419,88.361,24.82477997]
[1771127673186,90.28,88.43,88.35,2.29429277]
[1771127673187,24.4882951,88.409,88.35,2.29429277]
[1771127673687,24.4882951,88.409,88.35,27.11907274]
[1771127673887,24.4882951,88.407,88.35,27.11907274]
[1771127674083,24.4882951,88.399,88.35,24.82477997]
[1771127674384,24.4882951,88.399,88.34,2.29429277]
[1771127674581,2.29429277,88.39,88.337,24.82477997]
[1771127674787,24.4882951,88.389,88.337,24.82477997]
[1771127675184,24.4882951,88.389,88.33,2.29429277]
[1771127675584,24.4882951,88.389,88.332,10.1923]
[1771127675791,24.4882951,88.389,88.341,24.82477997]
[1771127676388,24.4882951,88.389,88.299,110.22]
[1771127676588,24.4882951,88.389,88.33,2.29429277]
[1771127677393,24.4882951,88.389,88.338,10.1916]
[1771127677596,24.4882951,88.389,88.33,27.11907274]
[1771127681589,24.4882951,88.389,88.34,2.29429277]
[1771127682292,24.4882951,88.389,88.35,2.29429277]
[1771127684297,24.4882951,88.389,88.351,23.60038602]
[1771127691902,25.53770426,88.403,88.351,23.60038602]
[1771127693102,25.53770426,88.401,88.351,23.60038602]
[1771127694406,25.53770426,88.399,88.351,23.60038602]
[1771127696198,25.53770426,88.389,88.339,23.60038602]
[1771127696409,25.53770426,88.415,88.361,23.60038602]
[1771127697803,25.53770426,88.412,88.361,23.60038602]
[1771127699911,10.1835,88.409,88.361,23.60038602]
[1771127700797,25.53770426,88.438,88.38,2.29429277]
[1771127701011,25.53770426,88.438,88.391,23.60038602]
[1771127701403,25.53770426,88.438,88.4,2.29429277]
[1771127701702,25.53770426,88.438,88.4,25.89467879]
[1771127701908,25.53770426,88.455,88.41,2.29429277]
[1771127702506,10.1781,88.456,88.411,23.60038602]
[1771127702711,25.53770426,88.468,88.421,23.60038602]
[1771127703207,361.42,88.489,88.41,2.29429277]
[1771127703208,25.53770426,88.459,88.41,2.29429277]
[1771127703409,25.53770426,88.459,88.42,2.29429277]
[1771127703705,25.53770426,88.459,88.42,23.60038602]
[1771127704610,25.53770426,88.459,88.41,2.29429277]
[1771127704808,25.53770426,88.459,88.41,25.89467879]
[1771127705409,25.53770426,88.473,88.43,2.29429277]
[1771127705609,25.53770426,88.473,88.421,23.60038602]
[1771127705907,25.53770426,88.469,88.421,23.60038602]
[1771127706915,25.53770426,88.486,88.44,2.29429277]
[1771127707212,284.08,88.515,88.431,23.60038602]
[1771127707213,25.53770426,88.479,88.431,23.60038602]
[1771127707414,25.53770426,88.469,88.42,2.29429277]
[1771127707804,25.53770426,88.469,88.418,23.60038602]
[1771127708718,25.53770426,88.468,88.42,25.89467879]
[1771127709822,25.53770426,88.477,88.43,25.89467879]
[1771127710715,25.53770426,88.477,88.44,2.29429277]
[1771127711712,25.53770426,88.477,88.43,25.89467879]
[1771127711913,25.53770426,88.477,88.43,23.60038602]
[1771127713911,284.08,88.515,88.416,24.21321119]
[1771127713912,23.84676044,88.469,88.416,24.21321119]
[1771127714210,23.84676044,88.459,88.401,24.21321119]
[1771127714416,23.84676044,88.456,88.401,24.21321119]
[1771127715614,23.84676044,88.449,88.401,24.21321119]
[1771127719122,26.14105321,88.44,88.387,24.21321119]
[1771127720026,23.84676044,88.438,88.387,24.21321119]
[1771127720223,2.29429277,88.43,88.387,24.21321119]
[1771127720420,91.88,88.47,88.391,24.21321119]
[1771127720421,23.84676044,88.445,88.391,24.21321119]
[1771127721817,2.29256602,88.43,88.391,24.21321119]
[1771127722228,23.84676044,88.439,88.391,24.21321119]
[1771127724520,2.29256602,88.45,88.4,2.29256602]
[1771127724727,26.13932646,88.45,88.4,26.50577721]
[1771127725827,91.88,88.47,88.4,26.50577721]
[1771127725828,10.1779,88.458,88.4,26.50577721]
[1771127726531,34.02466044,88.458,88.4,26.50577721]
[1771127726924,23.84676044,88.457,88.4,26.50577721]
[1771127727125,34.02496044,88.456,88.401,24.21321119]
[1771127730433,23.84676044,88.455,88.401,24.21321119]
[1771127732937,23.84676044,88.455,88.405,24.21321119]
[1771127733236,91.88,88.47,88.405,24.21321119]
[1771127733237,26.13932646,88.45,88.405,24.21321119]
[1771127733832,23.84676044,88.464,88.421,24.21321119]
[1771127738638,23.84676044,88.464,88.39,131.1599894]
[1771127738639,23.84676044,88.459,88.406,34.39691119]
[1771127739251,23.84676044,88.459,88.407,24.21321119]
[1771127740337,10.1779,88.458,88.407,24.21321119]
[1771127740537,2.29256602,88.44,88.399,10.1845]
[1771127740939,26.55778851,88.44,88.394,24.21321119]
[1771127741138,2.29256602,88.43,88.394,24.21321119]
[1771127741337,26.55778851,88.44,88.394,24.21321119]
[1771127745343,24.26522249,88.44,88.394,24.21321119]
[1771127748148,10.56285874,88.534,88.444,25.09007642]
[1771127748355,26.09549696,88.572,88.511,25.09007642]
[1771127748645,26.09549696,88.588,88.53,25.09007642]
[1771127748850,16.35277187,88.603,88.52,2.29256602]
[1771127748851,28.38806298,88.58,88.52,2.29256602]
[1771127749244,26.09549696,88.58,88.53,12.73119094]
[1771127749441,26.09549696,88.58,88.53,2.29256602]
[1771127750248,26.09549696,88.58,88.531,25.09007642]
[1771127751354,26.09549696,88.58,88.54,2.29256602]
[1771127751752,26.09549696,88.58,88.531,25.09007642]
[1771127752652,28.38806298,88.58,88.531,25.09007642]
[1771127753653,28.38806298,88.58,88.52,2.29256602]
[1771127753852,26.09549696,88.559,88.5,2.29256602]
[1771127754155,26.09549696,88.559,88.51,2.29256602]
[1771127756757,24.13000601,88.559,88.51,2.29256602]
[1771127759551,24.13000601,88.559,88.501,25.09007642]
[1771127759953,26.09549696,88.529,88.48,2.29256602]
[1771127760353,26.09549696,88.529,88.49,2.29256602]
[1771127760554,26.09549696,88.546,88.5,2.29256602]
[1771127762852,26.09549696,88.561,88.51,2.29256602]
[1771127764861,26.09549696,88.559,88.51,2.29256602]
[1771127765260,26.09549696,88.559,88.5,27.38264244]
[1771127766060,26.09549696,88.549,88.49,2.29256602]
[1771127766457,26.09549696,88.549,88.49,27.38264244]
[1771127768859,26.09549696,88.547,88.49,27.38264244]
[1771127769861,26.09549696,88.545,88.49,27.38264244]
[1771127770861,10.1681,88.543,88.5,2.29256602]
[1771127771764,10.1664,88.558,88.51,27.38264244]
[1771127772870,36.26189696,88.558,88.51,27.38264244]
[1771127775370,10.1673,88.55,88.51,27.38264244]
[1771127780172,10.1673,88.55,88.51,25.09007642]
[1771127782770,10.1681,88.543,88.51,25.09007642]
[1771127783877,25.84706738,88.549,88.5,28.35496315]
[1771127785778,10.1675,88.548,88.5,28.35496315]
[1771127787977,10.1675,88.548,88.51,28.35496315]
[1771127788477,10.1675,88.548,88.51,26.06804469]
[1771127789976,10.1685,88.539,88.51,26.06804469]
[1771127790675,10.167,88.553,88.51,28.35496315]
[1771127791071,21.11596817,88.519,88.485,10.40513091]
[1771127791274,2.28691846,88.49,88.452,26.06804469]
[1771127791578,2.28691846,88.51,88.452,26.06804469]
[1771127791775,2.28691846,88.52,88.471,26.06804469]
[1771127792080,21.15907473,88.539,88.481,26.06804469]
[1771127792282,21.15907473,88.529,88.481,26.06804469]
[1771127793380,10.1686,88.539,88.49,28.35496315]
[1771127793873,30.5925005,88.539,88.49,28.35496315]
[1771127794279,20.4239005,88.538,88.49,28.35496315]
[1771127795480,10.1689,88.536,88.49,28.35496315]
[1771127795876,22.1001907,88.535,88.49,28.35496315]
[1771127797880,32.36762428,88.534,88.49,28.35496315]
[1771127798277,22.23495467,88.524,88.48,2.28691846]
[1771127798780,10.1705,88.522,88.48,2.28691846]
[1771127798976,10.1705,88.522,88.48,28.35496315]
[1771127800587,22.23495467,88.524,88.48,28.35496315]
[1771127800782,22.23495467,88.524,88.48,26.06804469]
[1771127801084,10.1704,88.523,88.48,28.35496315]
[1771127802083,10.1691,88.534,88.491,26.61134622]
[1771127802488,21.93083833,88.534,88.491,26.61134622]
[1771127802888,10.1695,88.531,88.491,26.61134622]
[1771127803682,22.00832019,88.525,88.473,25.93074029]
[1771127803888,22.00832019,88.525,88.48,28.21765875]
[1771127807285,32.17852019,88.525,88.48,28.21765875]
[1771127809491,32.17852019,88.525,88.49,2.28691846]
[1771127811892,22.61583017,88.534,88.49,28.21765875]
[1771127813598,22.61583017,88.534,88.49,25.93074029]
[1771127815193,99.76,88.561,88.48,2.28691846]
[1771127815194,23.03390774,88.529,88.48,2.28691846]
[1771127815391,23.03390774,88.529,88.48,28.21765875]
[1771127816995,23.03390774,88.529,88.482,25.93074029]
[1771127817393,23.03390774,88.529,88.483,10.175]
[1771127817596,23.03390774,88.529,88.47,21.0199894]
[1771127817900,22.80279829,88.519,88.468,25.93074029]
[1771127818802,22.80279829,88.519,88.468,36.10734029]